fUSD/lending_fUSD_20240519
["ID","MTS","AMOUNT","RATE_DAILY","PERIOD"]
[327454538,1716079846820,-971.87,0.00027397,2]
[327454539,1716079846829,-6268.94,0.00027397,2]
[327454540,1716079846839,-500.0,0.00027397,2]
[327454541,1716079846851,-541.88,0.00027397,2]
[327454542,1716079846860,-537.03498854,0.00027397,2]
[327454543,1716079846869,-942.94,0.00027397,2]
[327454544,1716079846879,-973.68,0.00027397,2]
[327454545,1716079846888,-500.0,0.00027397,2]
[327454546,1716079846897,-500.0,0.00027397,2]
[327454547,1716079846907,-500.0,0.00027397,2]
[327454548,1716079846916,-500.0,0.00027397,2]
[327454549,1716079846925,-544.611513,0.00027397,7]
[327454550,1716079846935,-500.0,0.00027397,2]
[327454551,1716079846944,-500.0,0.00027397,2]
[327454552,1716079846954,-1701.01,0.00027397,2]
[327454553,1716079846963,-7483.61,0.00027397,2]
[327454554,1716079846973,-500.0,0.00027397,2]
[327454555,1716079846982,-544.611513,0.00027397,7]
[327454556,1716079846991,-500.0,0.00027397,2]
[327454557,1716079847001,-500.0,0.00027397,2]
[327454558,1716079847010,-500.0,0.00027397,2]
[327454559,1716079847020,-500.0,0.00027397,2]
[327454560,1716079847030,-500.0,0.00027397,2]
[327454561,1716079847039,-1401.02,0.00027397,2]
[327454562,1716079847049,-500.0,0.00027397,2]
[327454563,1716079847059,-500.0,0.00027397,2]
[327454564,1716079847069,-500.0,0.00027397,2]
[327454565,1716079847078,-676.79,0.00027397,2]
[327454566,1716079847088,-500.0,0.00027397,2]
[327454567,1716079847097,-500.0,0.00027397,2]
[327454568,1716079847107,-500.0,0.00027397,2]
[327454569,1716079847116,-185.476868,0.00027397,7]
[327454570,1716079847126,-537.08,0.00027397,2]
[327454571,1716079847136,-507.16768072,0.00027397,2]
[327454572,1716079847146,-500.0,0.00027397,2]
[327454573,1716079847155,-500.0,0.00027397,2]
[327454574,1716079847165,-500.0,0.00027397,2]
[327454575,1716079847175,-506.13140164,0.00027397,2]
[327454576,1716079847186,-500.0,0.00027397,2]
[327454577,1716079847195,-6981.65,0.00027397,2]
[327454578,1716079847204,-500.0,0.00027397,2]
[327454579,1716079847214,-500.0,0.00027397,2]
[327454580,1716079847224,-500.0,0.00027397,2]
[327454581,1716079847235,-2717.83,0.00027397,2]
[327454582,1716079847245,-500.0,0.00027397,2]
[327454583,1716079847255,-500.0,0.00027397,2]
[327454584,1716079847265,-500.0,0.00027397,2]
[327454585,1716079847275,-838.88,0.00027397,2]
[327454586,1716079847284,-500.0,0.00027397,2]
[327454587,1716079847294,-502.76,0.00027397,2]
[327454588,1716079847304,-2645.1,0.00027397,2]
[327454589,1716079847314,-500.0,0.00027397,2]
[327454590,1716079847323,-500.0,0.00027397,2]
[327454591,1716079847333,-500.0,0.00027397,2]
[327454592,1716079847344,-500.0,0.00027397,2]
[327454593,1716079847354,-500.0,0.00027397,2]
[327454594,1716079847364,-865.2,0.00027397,2]
[327454595,1716079847374,-1132.35,0.00027397,2]
[327454596,1716079847384,-500.0,0.00027397,2]
[327454597,1716079847394,-812.15,0.00027397,2]
[327454598,1716079847404,-500.0,0.00027397,2]
[327454599,1716079847414,-530.646126,0.00027397,7]
[327454600,1716079847424,-1556.62,0.00027397,2]
[327454601,1716079847433,-500.0,0.00027397,2]
[327454602,1716079847443,-718.44,0.00027397,2]
[327454603,1716079847453,-1265.15,0.00027397,2]
[327454604,1716079847464,-530.646126,0.00027397,7]
[327454605,1716079847474,-14055.37,0.00027397,2]
[327454606,1716079847483,-2634.63,0.00027397,2]
[327454607,1716079847494,-15063.88,0.00027397,2]
[327454608,1716079847504,-500.0,0.00027397,2]
[327454609,1716079847513,-500.0,0.00027397,2]
[327454610,1716079847523,-2652.66,0.00027397,2]
[327454611,1716079847533,-621.16,0.00027397,2]
[327454612,1716079847543,-500.0,0.00027397,2]
[327454613,1716079847554,-742.79,0.00027397,2]
[327454614,1716079847563,-500.0,0.00027397,2]
[327454615,1716079847573,-500.0,0.00027397,2]
[327454616,1716079847583,-500.0,0.00027397,2]
[327454617,1716079847593,-500.0,0.00027397,2]
[327454618,1716079847605,-794.5,0.00027397,2]
[327454619,1716079847615,-1250.69,0.00027397,2]
[327454620,1716079847625,-500.0,0.00027397,2]
[327454621,1716079847635,-693.14,0.00027397,2]
[327454622,1716079847644,-500.0,0.00027397,2]
[327454623,1716079847654,-500.0,0.00027397,2]
[327454624,1716079847663,-500.0,0.00027397,2]
[327454625,1716079847673,-500.0,0.00027397,2]
[327454626,1716079847683,-889.38,0.00027397,2]
[327454627,1716079847693,-1988.34,0.00027397,2]
[327454628,1716079847702,-500.0,0.00027397,2]
[327454629,1716079847712,-1357.07,0.00027397,2]
[327454630,1716079847721,-500.0,0.00027397,2]
[327454631,1716079847731,-500.0,0.00027397,2]
[327454632,1716079847740,-998.68,0.00027397,2]
[327454633,1716079847750,-500.0,0.00027397,2]
[327454634,1716079847760,-500.0,0.00027397,2]
[327454635,1716079847769,-5624.591496,0.00027397,7]
[327454636,1716079847779,-500.0,0.00027397,2]
[327454637,1716079847789,-502.42838538,0.00027397,2]
[327454638,1716079847798,-500.0,0.00027397,2]
[327454639,1716079847808,-407.98881958,0.00027397,2]
[327454640,1716079847818,-500.0,0.00027397,2]
[327454641,1716079847827,-601.38,0.00027397,2]
[327454642,1716079847837,-500.0,0.00027397,2]
[327454643,1716079847851,-500.0,0.00027397,2]
[327454644,1716079847860,-594.40395847,0.00027397,2]
[327454645,1716079847870,-500.0,0.00027397,2]
[327454646,1716079847879,-894.0,0.00027397,2]
[327454647,1716079847890,-5624.591496,0.00027397,7]
[327454648,1716079847900,-500.0,0.00027397,2]
[327454649,1716079847910,-2431.12,0.00027397,2]
[327454650,1716079847919,-500.0,0.00027397,2]
[327454651,1716079847932,-1539.56,0.00027397,2]
[327454652,1716079847942,-511.27,0.00027397,2]
[327454653,1716079847952,-500.0,0.00027397,2]
[327454654,1716079847962,-500.0,0.00027397,2]
[327454655,1716079847971,-500.0,0.00027397,2]
[327454656,1716079847981,-151.0,0.00027397,7]
[327454657,1716079847991,-1396.22,0.00027397,2]
[327454658,1716079848000,-151.0,0.00027397,7]
[327454659,1716079848010,-500.0,0.00027397,2]
[327454660,1716079848021,-151.0,0.00027397,7]
[327454661,1716079848031,-500.0,0.00027397,2]
[327454662,1716079848041,-1300.21,0.00027397,2]
[327454663,1716079848051,-500.0,0.00027397,2]
[327454664,1716079848060,-2267.23,0.00027397,2]
[327454665,1716079848070,-1327.72,0.00027397,2]
[327454666,1716079848079,-500.0,0.00027397,2]
[327454667,1716079848090,-151.0,0.00027397,7]
[327454668,1716079848099,-500.0,0.00027397,2]
[327454669,1716079848110,-500.0,0.00027397,2]
[327454670,1716079848121,-500.0,0.00027397,2]
[327454671,1716079848132,-500.0,0.00027397,2]
[327454672,1716079848145,-151.0,0.00027397,7]
[327454673,1716079848155,-252.8908016,0.00027397,2]
[327454674,1716079848164,-500.0,0.00027397,2]
[327454675,1716079848174,-500.0,0.00027397,2]
[327454676,1716079848183,-500.0,0.00027397,2]
[327454677,1716079848194,-500.0,0.00027397,2]
[327454678,1716079848204,-500.0,0.00027397,2]
[327454679,1716079848215,-500.44559614,0.00027397,2]
[327454680,1716079848227,-500.0,0.00027397,2]
[327454681,1716079848237,-500.0,0.00027397,2]
[327454682,1716079848248,-3187.9,0.00027397,2]
[327454683,1716079848475,-500.0,0.00027397,2]
[327454684,1716079848484,-1229.67,0.00027397,2]
[327454685,1716079848496,-1554.51,0.00027397,2]
[327454686,1716079848505,-500.0,0.00027397,2]
[327454687,1716079848514,-500.0,0.00027397,2]
[327454688,1716079848523,-447.53718065,0.00027397,2]
[327454689,1716079848533,-500.0,0.00027397,2]
[327454690,1716079848543,-500.0,0.00027397,2]
[327454691,1716079848553,-500.0,0.00027397,2]
[327454692,1716079848562,-500.0,0.00027397,2]
[327454693,1716079848572,-500.0,0.00027397,2]
[327454694,1716079848581,-500.0,0.00027397,2]
[327454695,1716079848590,-500.0,0.00027397,2]
[327454696,1716079848600,-504.14641482,0.00027397,2]
[327454697,1716079848610,-500.0,0.00027397,2]
[327454698,1716079848620,-500.0,0.00027397,2]
[327454699,1716079848629,-500.0,0.00027397,2]
[327454700,1716079848638,-500.0,0.00027397,2]
[327454701,1716079848648,-500.0,0.00027397,2]
[327454702,1716079848658,-902.06,0.00027397,2]
[327454703,1716079848667,-500.0,0.00027397,2]
[327454704,1716079848677,-503.70298916,0.00027397,2]
[327454705,1716079848687,-500.0,0.00027397,2]
[327454706,1716079848696,-500.0,0.00027397,2]
[327454707,1716079848706,-507.24756554,0.00027397,2]
[327454708,1716079848715,-500.0,0.00027397,2]
[327454709,1716079848724,-739.0,0.00027397,2]
[327454710,1716079848735,-744.32,0.00027397,2]
[327454711,1716079848747,-151.0,0.00027397,7]
[327454712,1716079848756,-500.0,0.00027397,2]
[327454713,1716079848765,-566.09,0.00027397,2]
[327454714,1716079848774,-500.0,0.00027397,2]
[327454715,1716079848783,-500.0,0.00027397,2]
[327454716,1716079848793,-500.0,0.00027397,2]
[327454717,1716079848802,-151.0,0.00027397,7]
[327454718,1716079848812,-2317.87,0.00027397,2]
[327454719,1716079848821,-500.0,0.00027397,2]
[327454720,1716079848831,-1543.54,0.00027397,2]
[327454721,1716079848840,-500.0,0.00027397,2]
[327454722,1716079848852,-529.43990547,0.00027397,2]
[327454723,1716079848863,-526.40263207,0.00027397,2]
[327454724,1716079848873,-543.75239111,0.00027397,2]
[327454725,1716079848882,-500.0,0.00027397,2]
[327454726,1716079848892,-500.0,0.00027397,2]
[327454727,1716079848903,-500.0,0.00027397,2]
[327454728,1716079848914,-500.0,0.00027397,2]
[327454729,1716079848925,-500.0,0.00027397,2]
[327454730,1716079848935,-500.0,0.00027397,2]
[327454731,1716079848944,-500.0,0.00027397,2]
[327454732,1716079848954,-500.0,0.00027397,2]
[327454733,1716079848963,-500.0,0.00027397,2]
[327454734,1716079848972,-500.0,0.00027397,2]
[327454735,1716079848981,-1576.46,0.00027397,2]
[327454736,1716079848991,-500.0,0.00027397,2]
[327454737,1716079849002,-500.0,0.00027397,2]
[327454738,1716079849011,-500.0,0.00027397,2]
[327454739,1716079849021,-500.0,0.00027397,2]
[327454740,1716079849030,-1727.73,0.00027397,2]
[327454741,1716079849041,-500.0,0.00027397,2]
[327454742,1716079849052,-1192.7,0.00027397,2]
[327454743,1716079849061,-702.53,0.00027397,2]
[327454744,1716079849070,-500.0,0.00027397,2]
[327454745,1716079849080,-500.0,0.00027397,2]
[327454746,1716079849089,-500.0,0.00027397,2]
[327454747,1716079849098,-902.92,0.00027397,2]
[327454748,1716079849107,-500.0,0.00027397,2]
[327454749,1716079849116,-500.0,0.00027397,2]
[327454750,1716079849125,-567.60606817,0.00027397,2]
[327454751,1716079849134,-750.17,0.00027397,2]
[327454752,1716079849143,-500.0,0.00027397,2]
[327454753,1716079849152,-500.0,0.00027397,2]
[327454754,1716079849162,-500.0,0.00027397,2]
[327454755,1716079849171,-683.13,0.00027397,2]
[327454756,1716079849180,-1571.87,0.00027397,2]
[327454757,1716079849189,-515.12197012,0.00027397,2]
[327454758,1716079849199,-500.0,0.00027397,2]
[327454759,1716079849208,-500.0,0.00027397,2]
[327454760,1716079849218,-1391.44,0.00027397,2]
[327454761,1716079849227,-1593.16,0.00027397,2]
[327454762,1716079849236,-500.0,0.00027397,2]
[327454763,1716079849248,-500.0,0.00027397,2]
[327454764,1716079849257,-500.0,0.00027397,2]
[327454765,1716079849266,-500.0,0.00027397,2]
[327454766,1716079849275,-734.3,0.00027397,2]
[327454767,1716079849285,-723.24,0.00027397,2]
[327454768,1716079849294,-765.2,0.00027397,2]
[327454769,1716079849303,-500.0,0.00027397,2]
[327454770,1716079849312,-500.0,0.00027397,2]
[327454771,1716079849322,-500.0,0.00027397,2]
[327454772,1716079849331,-1006.36,0.00027397,2]
[327454773,1716079849341,-500.0,0.00027397,2]
[327454774,1716079849350,-500.0,0.00027397,2]
[327454775,1716079849360,-500.0,0.00027397,2]
[327454776,1716079849370,-500.0,0.00027397,2]
[327454777,1716079849379,-1946.51,0.00027397,2]
[327454778,1716079849389,-500.0,0.00027397,2]
[327454779,1716079849398,-500.0,0.00027397,2]
[327454780,1716079849407,-500.0,0.00027397,2]
[327454781,1716079849417,-1321.13,0.00027397,2]
[327454782,1716079849426,-737.65,0.00027397,2]
[327454783,1716079849435,-500.0,0.00027397,2]
[327454784,1716079849445,-500.0,0.00027397,2]
[327454785,1716079849454,-340.963945,0.00027397,7]
[327454786,1716079849463,-500.0,0.00027397,2]
[327454787,1716079849472,-500.0,0.00027397,2]
[327454788,1716079849481,-976.72,0.00027397,2]
[327454789,1716079849490,-500.0,0.00027397,2]
[327454790,1716079849501,-500.0,0.00027397,2]
[327454791,1716079849510,-182.997182,0.00027397,7]
[327454792,1716079849519,-340.963945,0.00027397,7]
[327454793,1716079849528,-1844.47,0.00027397,2]
[327454794,1716079849537,-500.0,0.00027397,2]
[327454795,1716079849546,-500.0,0.00027397,2]
[327454796,1716079849555,-500.0,0.00027397,2]
[327454797,1716079849566,-500.0,0.00027397,2]
[327454798,1716079849575,-500.0,0.00027397,2]
[327454799,1716079849585,-609.15,0.00027397,2]
[327454800,1716079849595,-1337.56,0.00027397,2]
[327454801,1716079849603,-892.71,0.00027397,2]
[327454802,1716079849613,-182.997182,0.00027397,7]
[327454803,1716079849622,-500.0,0.00027397,2]
[327454804,1716079849631,-151.0,0.00027397,7]
[327454805,1716079849640,-500.0,0.00027397,2]
[327454806,1716079849650,-500.0,0.00027397,2]
[327454807,1716079849658,-289.1259324,0.00027397,2]
[327454808,1716079849667,-500.0,0.00027397,2]
[327454809,1716079849677,-584.37,0.00027397,2]
[327454810,1716079849686,-713.62,0.00027397,2]
[327454811,1716079849695,-2601.94,0.00027397,2]
[327454812,1716079849704,-500.0,0.00027397,2]
[327454813,1716079849713,-521.97,0.00027397,2]
[327454814,1716079849723,-500.0,0.00027397,2]
[327454815,1716079849732,-1338.29,0.00027397,2]
[327454816,1716079849743,-1000.0,0.00027397,2]
[327454817,1716079849753,-500.0,0.00027397,2]
[327454818,1716079849762,-877.48,0.00027397,2]
[327454819,1716079849771,-500.0,0.00027397,2]
[327454820,1716079849781,-500.0,0.00027397,2]
[327454821,1716079849790,-500.0,0.00027397,2]
[327454822,1716079849799,-955.29,0.00027397,2]
[327454823,1716079849809,-500.0,0.00027397,2]
[327454824,1716079849818,-3753.72,0.00027397,2]
[327454825,1716079849827,-500.0,0.00027397,2]
[327454826,1716079849836,-3260.19,0.00027397,2]
[327454827,1716079849847,-500.0,0.00027397,2]
[327454828,1716079849858,-500.0,0.00027397,2]
[327454829,1716079849867,-2742.03,0.00027397,2]
[327454830,1716079849876,-1111.7,0.00027397,2]
[327454831,1716079849885,-151.0,0.00027397,7]
[327454832,1716079849895,-500.0,0.00027397,2]
[327454833,1716079849904,-1864.26,0.00027397,2]
[327454834,1716079849913,-500.0,0.00027397,2]
[327454835,1716079849923,-500.0,0.00027397,2]
[327454836,1716079849934,-500.0,0.00027397,2]
[327454837,1716079849944,-500.0,0.00027397,2]
[327454838,1716079849953,-500.0,0.00027397,2]
[327454839,1716079849963,-500.0,0.00027397,2]
[327454840,1716079849972,-500.0,0.00027397,2]
[327454841,1716079849981,-631.61953437,0.00027397,2]
[327454842,1716079849990,-151.0,0.00027397,7]
[327454843,1716079850000,-550.17,0.00027397,2]
[327454844,1716079850010,-500.0,0.00027397,2]
[327454845,1716079850019,-274.64346877,0.00027397,2]
[327454846,1716079850028,-500.0,0.00027397,2]
[327454847,1716079850037,-500.0,0.00027397,2]
[327454848,1716079850046,-577.21,0.00027397,2]
[327454849,1716079850055,-500.0,0.00027397,2]
[327454850,1716079850064,-1512.87,0.00027397,2]
[327454851,1716079850073,-697.0,0.00027397,2]
[327454852,1716079850083,-500.0,0.00027397,2]
[327454853,1716079850092,-500.0,0.00027397,2]
[327454854,1716079850101,-2533.85,0.00027397,2]
[327454855,1716079850111,-679.17,0.00027397,2]
[327454856,1716079850120,-965.18,0.00027397,2]
[327454857,1716079850129,-1281.95,0.00027397,2]
[327454858,1716079850138,-500.0,0.00027397,2]
[327454859,1716079850148,-500.0,0.00027397,2]
[327454860,1716079850157,-500.0,0.00027397,2]
[327454861,1716079850166,-500.0,0.00027397,2]
[327454862,1716079850176,-500.0,0.00027397,2]
[327454863,1716079850185,-500.0,0.00027397,2]
[327454864,1716079850195,-500.0,0.00027397,2]
[327454865,1716079850204,-500.0,0.00027397,2]
[327454866,1716079850213,-500.0,0.00027397,2]
[327454867,1716079850222,-4000.0,0.00027397,2]
[327454868,1716079850231,-157.051909,0.00027448,20]
[327454869,1716079850241,-157.051909,0.00027548,14]
[327454870,1716079850251,-15432.14975388,0.00027667,4]
[327454871,1716079850260,-500.0,0.0002767,2]
[327454872,1716079850269,-500.0,0.0002767,2]
[327454873,1716079850279,-500.0,0.0002767,2]
[327454874,1716079850288,-500.0,0.00027671,2]
[327454875,1716079850298,-500.0,0.00027671,2]
[327454876,1716079850307,-500.0,0.00027671,2]
[327454877,1716079850318,-241.8953994,0.00027671,2]
[327454878,1716079850327,-500.0,0.00027671,2]
[327454879,1716079850339,-500.0,0.00027671,2]
[327454880,1716079850349,-500.0,0.00027671,2]
[327454881,1716079850359,-500.0,0.00027671,2]
[327454882,1716079850368,-500.0,0.00027671,2]
[327454883,1716079850379,-500.0,0.00027671,2]
[327454884,1716079850390,-500.0,0.00027671,2]
[327454885,1716079850400,-694.12,0.00027671,2]
[327454886,1716079850409,-500.0,0.00027671,2]
[327454887,1716079850418,-500.0,0.00027671,2]
[327454888,1716079850427,-500.0,0.00027671,2]
[327454889,1716079850437,-500.0,0.00027671,2]
[327454890,1716079850446,-500.0,0.00027671,2]
[327454891,1716079850455,-366.06519202,0.00027671,2]
[327454892,1716079850465,-500.0,0.00027671,2]
[327454893,1716079850475,-500.0,0.00027671,2]
[327454894,1716079850484,-500.0,0.00027671,2]
[327454895,1716079850494,-599.25,0.00027671,2]
[327454896,1716079850503,-500.0,0.00027671,2]
[327454897,1716079850512,-500.0,0.00027671,2]
[327454898,1716079850521,-500.0,0.00027671,2]
[327454899,1716079850530,-500.0,0.00027671,2]
[327454900,1716079850539,-566.02,0.00027671,2]
[327454901,1716079850548,-500.0,0.00027671,2]
[327454902,1716079850557,-500.0,0.00027671,2]
[327454903,1716079850566,-500.0,0.00027671,2]
[327454904,1716079850575,-500.0,0.00027671,2]
[327454905,1716079850584,-500.0,0.00027671,2]
[327454906,1716079850593,-608.41,0.00027671,2]
[327454907,1716079850603,-500.0,0.00027671,2]
[327454908,1716079850612,-500.0,0.00027671,2]
[327454909,1716079850621,-1131.97,0.00027671,2]
[327454910,1716079850630,-500.0,0.00027671,2]
[327454911,1716079850639,-151.0,0.00027671,7]
[327454912,1716079850648,-579.57,0.00027671,2]
[327454913,1716079850657,-500.0,0.00027671,2]
[327454914,1716079850666,-398.79,0.00027671,2]
[327454915,1716079850675,-500.0,0.00027671,2]
[327454916,1716079850684,-500.0,0.00027671,2]
[327454917,1716079850693,-500.0,0.00027671,2]
[327454918,1716079850754,-521.67133924,0.00027671,2]
[327454919,1716079850763,-500.0,0.00027671,2]
[327454920,1716079850772,-500.0,0.00027671,2]
[327454921,1716079850782,-500.09,0.00027671,2]
[327454922,1716079850791,-500.0,0.00027671,2]
[327454923,1716079850800,-387.86,0.00027671,2]
[327454924,1716079850809,-873.62,0.00027671,2]
[327454925,1716079850818,-320.56,0.00027671,2]
[327454926,1716079850826,-500.0,0.00027671,2]
[327454927,1716079850835,-500.0,0.00027671,2]
[327454928,1716079850845,-500.0,0.00027671,2]
[327454929,1716079850858,-500.0,0.00027671,2]
[327454930,1716079850867,-500.0,0.00027671,2]
[327454931,1716079850876,-395.83402124,0.00027671,2]
[327454932,1716079850886,-500.0,0.00027671,2]
[327454933,1716079850895,-500.0,0.00027671,2]
[327454934,1716079850903,-500.0,0.00027671,2]
[327454935,1716079850912,-500.0,0.00027671,2]
[327454936,1716079850921,-648.09,0.00027671,2]
[327454937,1716079850930,-523.3,0.00027671,2]
[327454938,1716079850939,-500.0,0.00027671,2]
[327454939,1716079850948,-210.23,0.00027671,2]
[327454940,1716079850957,-500.0,0.00027671,2]
[327454941,1716079850966,-500.0,0.00027671,2]
[327454942,1716079850975,-500.0,0.00027671,2]
[327454943,1716079850984,-500.0,0.00027671,2]
[327454944,1716079850993,-500.0,0.00027671,2]
[327454945,1716079851003,-801.03,0.00027671,2]
[327454946,1716079851011,-558.63,0.00027671,2]
[327454947,1716079851020,-500.0,0.00027671,2]
[327454948,1716079851029,-799.77,0.00027671,2]
[327454949,1716079851038,-591.98,0.00027671,2]
[327454950,1716079851047,-500.0,0.00027671,2]
[327454951,1716079851056,-500.0,0.00027671,2]
[327454952,1716079851065,-892.31,0.00027671,2]
[327454953,1716079851074,-500.0,0.00027671,2]
[327454954,1716079851083,-500.0,0.00027671,2]
[327454955,1716079851092,-655.12,0.00027671,2]
[327454956,1716079851101,-616.57,0.00027671,2]
[327454957,1716079851110,-517.62,0.00027671,2]
[327454958,1716079851120,-500.0,0.00027671,2]
[327454959,1716079851129,-500.0,0.00027671,2]
[327454960,1716079851137,-500.0,0.00027671,2]
[327454961,1716079851147,-602.52,0.00027671,2]
[327454962,1716079851156,-500.0,0.00027671,2]
[327454963,1716079851165,-500.0,0.00027671,2]
[327454964,1716079851174,-500.0,0.00027671,2]
[327454965,1716079851183,-840.77,0.00027671,2]
[327454966,1716079851192,-500.0,0.00027671,2]
[327454967,1716079851201,-608.64,0.00027671,2]
[327454968,1716079851210,-500.0,0.00027671,2]
[327454969,1716079851219,-153.33,0.00027671,2]
[327454970,1716079851228,-568.83430697,0.00027671,2]
[327454971,1716079851237,-500.0,0.00027671,2]
[327454972,1716079851246,-536.02,0.00027671,2]
[327454973,1716079851255,-1106.38,0.00027671,2]
[327454974,1716079851264,-500.0,0.00027671,2]
[327454975,1716079851273,-151.0,0.00027671,7]
[327454976,1716079851282,-500.0,0.00027671,2]
[327454977,1716079851291,-500.0,0.00027671,2]
[327454978,1716079851300,-500.0,0.00027671,2]
[327454979,1716079851308,-500.0,0.00027671,2]
[327454980,1716079851317,-500.0,0.00027671,2]
[327454981,1716079851326,-272.54,0.00027671,2]
[327454982,1716079851335,-354.56459678,0.00027671,2]
[327454983,1716079851344,-151.0,0.00027671,7]
[327454984,1716079851352,-500.0,0.00027671,2]
[327454985,1716079851362,-957.21,0.00027671,2]
[327454986,1716079851371,-1257.0,0.00027671,2]
[327454987,1716079851380,-500.0,0.00027671,2]
[327454988,1716079851389,-256.92,0.00027671,2]
[327454989,1716079851398,-500.0,0.00027671,2]
[327454990,1716079851407,-500.0,0.00027671,2]
[327454991,1716079851416,-500.0,0.00027671,2]
[327454992,1716079851425,-500.0,0.00027671,2]
[327454993,1716079851434,-500.0,0.00027671,2]
[327454994,1716079851443,-1352.16,0.00027671,2]
[327454995,1716079851452,-500.0,0.00027671,2]
[327454996,1716079851462,-684.6,0.00027671,2]
[327454997,1716079851471,-1072.66,0.00027671,2]
[327454998,1716079851480,-849.73,0.00027671,2]
[327454999,1716079851489,-500.0,0.00027671,2]
[327455000,1716079851498,-874.66,0.00027671,2]
[327455001,1716079851507,-151.0,0.00027671,7]
[327455002,1716079851516,-500.0,0.00027671,2]
[327455003,1716079851526,-585.08,0.00027671,2]
[327455004,1716079851535,-1990.29,0.00027671,2]
[327455005,1716079851544,-545.44,0.00027671,2]
[327455006,1716079851553,-151.0,0.00027671,7]
[327455007,1716079851561,-1243.99,0.00027671,2]
[327455008,1716079851571,-500.0,0.00027671,2]
[327455009,1716079851580,-500.0,0.00027671,2]
[327455010,1716079851590,-750.45,0.00027671,2]
[327455011,1716079851599,-152.797112,0.00027671,7]
[327455012,1716079851608,-500.0,0.00027671,2]
[327455013,1716079851617,-748.72,0.00027671,2]
[327455014,1716079851626,-1292.43,0.00027671,2]
[327455015,1716079851636,-151.0,0.00027671,7]
[327455016,1716079851646,-500.0,0.00027671,2]
[327455017,1716079851656,-151.0,0.00027671,7]
[327455018,1716079851666,-846.9,0.00027671,2]
[327455019,1716079851676,-500.0,0.00027671,2]
[327455020,1716079851686,-1250.19,0.00027671,2]
[327455021,1716079851696,-1463.37,0.00027671,2]
[327455022,1716079851705,-500.0,0.00027671,2]
[327455023,1716079851714,-151.0,0.00027671,7]
[327455024,1716079851723,-530.63,0.00027671,2]
[327455025,1716079851732,-500.0,0.00027671,2]
[327455026,1716079851742,-843.77,0.00027671,2]
[327455027,1716079851752,-1072.07,0.00027671,2]
[327455028,1716079851761,-500.0,0.00027671,2]
[327455029,1716079851770,-896.67,0.00027671,2]
[327455030,1716079851779,-500.0,0.00027671,2]
[327455031,1716079851788,-500.0,0.00027671,2]
[327455032,1716079851797,-319.688279,0.00027671,7]
[327455033,1716079851806,-500.0,0.00027671,2]
[327455034,1716079851815,-733.96,0.00027671,2]
[327455035,1716079851824,-1493.69,0.00027671,2]
[327455036,1716079851833,-319.688279,0.00027671,7]
[327455037,1716079851842,-996.4,0.00027671,2]